Workbook

Sheet от 1года до 3 лет
A1: Утверждаю | H1: Согласовано
A2: Директор ООО"АБК - Пэймент" | H2: Руководитель дошкольной образовательной
A3: Рахматуллин Р.Р. | H3: организации
E6: Примерное 10-дневное меню
E7: для организации питания детей в дошкольных учреждениях
E8: с 12 - часовым пребыванием от 1 года до 3 лет
A10: День 1 - ый
A11: Наименование блюд и | C11: Масса | D11: Кол - во | E11: Кол - во | F11: Пищевые вещества | I11: Энергетическая | J11: витамин | K11: Сборник
A12: продуктов | C12: порции | D12: (в гр ) | E12: (в гр ) | I12: ценность | K12: рецептур
D13: брутто | E13: нетто | F13: белки | G13: жиры | H13: угл-ды | I13: Ккал | J13: С
A15: Каша "Дружба" молочная с маслом сливочным | C15: 140/3 | F15: 3.80 | G15: 3.26 | H15: 22.56 | I15: 136.02 | J15: 0.60 | K15: ТТК №7Д
B16: Крупа рисовая | D16: 10 | E16: 10
B17: Крупа пшенная | D17: 7.5 | E17: 7.5
B18: Молоко | D18: 75 | E18: 75
B19: Вода | D19: 48 | E19: 48
B20: Сахар | D20: 2 | E20: 2
B21: соль иодированная | D21: 0.4 | E21: 0.4
B22: Масло сливочное | D22: 3 | E22: 3
A23: Кофейный напиток с молоком | C23: 180 | F23: 2.85 | G23: 2.41 | H23: 5.99 | I23: 42.67 | J23: 1.17 | K23: №395Дели2010
B24: Кофейный напиток | D24: 2.5 | E24: 2.5
B25: Сахар | D25: 6 | E25: 6
B26: Молоко | D26: 90 | E26: 90
B27: Вода | D27: 108 | E27: 108
A28: Бутерброд с маслом сливочным | C28: 25/5 | F28: 1.92 | G28: 4.36 | H28: 12.92 | I28: 98.50 | K28: №1 Дели2010
B29: Батон нарезной | D29: 25 | E29: 25
B30: Масло сливочное | D30: 5 | E30: 5
A31: Итого: | C31: 353 | F31: =F15+F23+F28 -> 8.57 | G31: =G15+G23+G28 -> 10.03 | H31: 41.47 | I31: 277.19 | J31: 1.77
B32: 2 - ой ЗАВТРАК
A33: Сок | C33: 200 | D33: 200 | E33: 200 | F33: 1.00 | G33: 0.00 | H33: 20.20 | I33: 85.34 | J33: 4.00 | K33: №418 Дели2016
A34: в ассортименте в инд.упаковке
A35: Итого: | C35: 200 | F35: =F33 -> 1.00 | G35: =G33 -> 0.00 | H35: 20.20 | I35: 85.34 | J35: 4.00
B36: ОБЕД
A37: Салат из моркови с яблоками | C37: 40 | F37: 0.43 | G37: 0.07 | H37: 3.45 | I37: 16.16 | J37: 2.50 | K37: №39,сб дошк2016
B38: морковь | D38: 37.50 | E38: 30.00
B39: яблоки | D39: 11.40 | E39: 10.00
B40: сахар | D40: 0.40 | E40: 0.40
A41: Суп картофельный с куриными фрикадельками | C41: 150/10 | F41: 2.82 | G41: 2.96 | H41: 10.86 | I41: 81.25 | J41: 7.24 | K41: №83 СБ дошк 2016
B42: цыплята - бройлеры с/м | D42: 17.5 | E42: 11.4
B43: или фарш куриный | D43: 11.4 | E43: 11.4
B44: Лук репчатый | D44: 1.19 | E44: 1
B45: Яйцо | D45: 0.96 | E45: 0.8
B46: Вода для фарша | D46: 1 | E46: 1
B47: соль иодированная | D47: 0.1 | E47: 0.1
B48: масса готовых фрикаделек | E48: 10
B49: Картофель | D49: 90.00 | E49: 67.50
B50: Морковь | D50: 7.50 | E50: 6.00
B51: Лук репчатый | D51: 7.14 | E51: 6.00
B52: Масло растительное | D52: 1.50 | E52: 1.50
B53: соль иодированная | D53: 0.50 | E53: 0.50
B54: Вода | D54: 105.00 | E54: 105.00
A55: Котлеты рубленные из говядины | C55: 50 | F55: 5.74 | G55: 7.64 | H55: 6.54 | I55: 128.00 | K55: СБ дошкольн. №299, 2016
B56: говядина (котлетное мясо б/к) | D56: 36.57 | E56: 35
B57: или фарш говяжий | D57: 35 | E57: 35
B58: лук репчатый | D58: 10.4 | E58: 8.75
B59: Хлеб пшеничный | D59: 8.13 | E59: 8.13
B60: Вода | D60: 5.2 | E60: 5.2
B61: сухари панировочные | D61: 2.8 | E61: 2.8
B62: соль иодированная | D62: 0.4 | E62: 0.4
B63: масса полуфабриката | E63: 61.9
B64: Масло растительное | D64: 0.60 | E64: 0.60
A65: Каша ячневая вязкая с маслом сливочным | C65: 110/2 | F65: 2.50 | G65: 2.70 | H65: 25.29 | I65: 115.70 | K65: ТТК №3Д
B66: Крупа ячневая | D66: 24 | E66: 24
B67: Вода | D67: 88 | E67: 88
B68: Масло сливочное | D68: 2 | E68: 2
B69: соль иодированная | D69: 0.28 | E69: 0.28
A70: Напиток из сухофруктов | C70: 150 | F70: 0.50 | G70: 0.07 | H70: 17.34 | I70: 57 | J70: 0.54 | K70: №394 Сб дошк 2016
B71: сухофрукты | D71: 12.50 | E71: 12.50
B72: Сахар | D72: 5.00 | E72: 5.00
B73: вода | D73: 152.00 | E73: 152.00
A74: Хлеб ржаной | C74: 35 | D74: 35 | E74: 35 | F74: 2.31 | G74: 0.42 | H74: 13.85 | I74: 69.23 | K74: табл 6 стр 144,Дели + 2012
A75: Итого: | C75: 547.00 | F75: =F37+F41+F55+F65+F70+F74 -> 14.30 | G75: =G37+G41+G55+G65+G70+G74 -> 13.86 | H75: 77.32 | I75: 467.16 | J75: 10.28
B76: УПЛОТНЕННЫЙ ПОЛДНИК
A77: Кисломолочный напиток | C77: 150/2 | F77: 4.35 | G77: 3.75 | H77: 9.98 | I77: 82.98 | J77: 1.05 | K77: №420 Сб дошк 2016
A78: (Кефир,ряженка,катык,напиток ацидофильный/йогурт) | B78: кисломолочный напиток | D78: 155 | E78: 150
B79: сахар | D79: 2 | E79: 2
A80: Пудинг рыбный | C80: 45/15 | F80: 7.40 | G80: 6.45 | H80: 13.52 | I80: 142.85 | J80: 0.32 | K80: №286 СБ дошк 2016
B81: рыба (минтай с/м БГ) | D81: 51.54 | E81: 37.9
B82: масса отварной рыбы | E82: 30
B83: Хлеб пшеничный | D83: 6.2 | E83: 6.2
B84: яйцо | D84: 4.8 | E84: 4
B85: молоко | D85: 9 | E85: 9
B86: масло сливочное | D86: 1.7 | E86: 1.7
B87: соль иодированная | D87: 0.3 | E87: 0.3
B88: Масло растительное | D88: 0.8 | E88: 0.8
B89: масса пудинга | E89: 45
B90: Соус молочный
B91: молоко | D91: 7.5 | E91: 7.5
B92: масло сливочное | D92: 0.8 | E92: 0.8
B93: Мука пшеничная | D93: 0.8 | E93: 0.8
B94: Вода | D94: 7.5 | E94: 7.5
B95: Сахар | D95: 0.15 | E95: 0.15
B96: соль иодированная | D96: 0.09 | E96: 0.09
B97: масса соуса | E97: 15
A98: Пюре Картофельное | C98: 120 | F98: 2.47 | G98: 3.86 | H98: 21.62 | I98: 127.72 | J98: 14.53 | K98: № 339 СБ дошк 2016
B99: Картофель | D99: 136.80 | E99: 102.60
B100: Молоко | D100: 18.96 | E100: 18.00
B101: Масло сливочное | D101: 4.20 | E101: 4.20
B102: соль иодированная | D102: 0.45 | E102: 0.45
A103: Чай с сахаром | C103: 150/5 | F103: 0.04 | G103: 0.01 | H103: 5.01 | I103: 19.95 | J103: 0.02 | K103: №392 Дели2010
B104: чай весовой | D104: 0.4 | E104: 0.4
B105: Сахар | D105: 5 | E105: 5
B106: Вода | D106: 150 | E106: 150
A107: Кондитерские изделия | B107: вафли | C107: 10 | D107: 10.00 | E107: 10.00 | F107: 0.39 | G107: 3.06 | H107: 6.25 | I107: 54.20 | K107: табл 6 стр 136,Ддели +,2012
A108: Хлеб пшеничный | C108: 25 | D108: 25.00 | E108: 25.00 | F108: 1.90 | G108: 0.20 | H108: 12.30 | I108: 58.75 | J108: 0.00 | K108: табл 6 стр 134,Дели + 2012
A109: Итого: | C109: 522.00 | F109: =F77+F80+F98+F103+F107+F108 -> 16.55 | G109: =G77+G80+G98+G103+G107+G108 -> 17.34 | H109: 68.69 | I109: 486.45 | J109: 15.92
A110: ВСЕГО: | C110: =C31+C35+C75+C109 -> 1622.00 | F110: =F31+F35+F75+F109 -> 40.42 | G110: =G31+G35+G75+G109 -> 41.23 | H110: =H31+H35+H75+H109 -> 207.68 | I110: =I31+I35+I75+I109 -> 1316.14 | J110: =J31+J35+J75+J109 -> 31.97
A112: День 2- ой
A113: Наименование блюд и | C113: Масса | D113: Кол - во | E113: Кол - во | F113: Пищевые вещества | I113: Энергетическая | J113: Витамин | K113: Сборник
A114: продуктов | C114: порции | D114: (в гр ) | E114: (в гр ) | I114: ценность | K114: рецептур
D115: брутто | E115: нетто | F115: белки | G115: жиры | H115: угл-ды | I115: Ккал | J115: С
B116: ЗАВТРАК
A117: Каша полбяная молочная с маслом сливочным | C117: 140/3 | F117: 2.21 | G117: 2.02 | H117: 24.11 | I117: 123.31 | J117: 0.67 | K117: ТТК №1Д
B118: Крупа полбяная | D118: 18 | E118: 18
B119: Молоко | D119: 70 | E119: 70
B120: вода | D120: 53 | E120: 53
B121: Сахар | D121: 2 | E121: 2
B122: соль иодированная | D122: 0.4 | E122: 0.4
B123: Масло сливочное | D123: 3 | E123: 3
A124: Какао с молоком | C124: 180 | F124: 3.67 | G124: 3.19 | H124: 5.99 | I124: 58.83 | J124: 1.43 | K124: №397 Дели2010
B125: Какао-порошок | D125: 2 | E125: 2
B126: Сахар | D126: 6 | E126: 6
B127: Молоко | D127: 110 | E127: 110
B128: Вода | D128: 80 | E128: 80
A129: Бутерброд с сыром, маслом сливочным | C129: 25/5/5 | F129: 3.27 | G129: 5.06 | H129: 12.26 | I129: 107.57 | J129: 0.04 | K129: №3 сб дошк2016
B130: Батон нарезной | D130: 25 | E130: 25
B131: Сыр | D131: 5.1 | E131: 5
B132: Масло сливочное | D132: 5 | E132: 5
A133: Итого: | C133: 358 | F133: =F117+F124+F129 -> 9.15 | G133: =G117+G124+G129 -> 10.26 | H133: 42.36 | I133: 289.71 | J133: 2.14
B134: 2 - ой ЗАВТРАК
A135: Фрукты свежие | C135: 100 | D135: 114 | E135: 100 | F135: 0.40 | G135: 0.40 | H135: 9.80 | I135: 47.00 | J135: 10.00 | K135: №386 СБ
A136: (яблоки,или апельсин, или банан,или мандарин ) | K136: дошк.2016
A137: Итого: | C137: 100 | F137: =F135 -> 0.40 | G137: =G135 -> 0.40 | H137: 9.80 | I137: 47.00 | J137: 10.00
B138: ОБЕД
A139: Салат из картофеля с солеными огурцами | C139: 40 | F139: 0.49 | G139: 3.14 | H139: 3.58 | I139: 44.56 | J139: 2.41 | K139: №23 сб дошк2016
B140: огурцы соленые | D140: 21.84 | E140: 12.00
B141: картофель | D141: 21.92 | E141: 16.00
B142: морковь | D142: 10.24 | E142: 8.00
B143: лук репчатый | D143: 2.40 | E143: 2.00
B144: масло растительное | D144: 2.00 | E144: 2.00
A145: Борщ со свежей капустой, картофелем на курином бульоне,со сметаной | C145: 150/7 | F145: 1.86 | G145: 4.00 | H145: 6.81 | I145: 73.55 | J145: 6.43 | K145: №110,сбшк2004
B146: Капуста свежая | D146: 15.0 | E146: 12.0
B147: Картофель | D147: 15.96 | E147: 12.0
B148: Морковь | D148: 7.5 | E148: 6.0
B149: Лук репчатый | D149: 7.14 | E149: 6.0
B150: Свекла | D150: 30.72 | E150: 24.0
B151: Сахар | D151: 1.8 | E151: 1.8
B152: Масло растительное | D152: 3.0 | E152: 3.0
B153: соль иодированная | D153: 1.5 | E153: 1.5
B154: Бульон | D154: 120 | E154: 120.0
B155: Сметана | D155: 7.0 | E155: 7.0
B156: Томатная паста | D156: 0.8 | E156: 0.8
A157: Плов из отварной птицы | C157: 150 | F157: 8.91 | G157: 8.22 | H157: 23.16 | I157: 212.45 | J157: 0.13 | K157: №443 сбшк2004
B158: цыплята - бройлер с/м | D158: 67.20 | E158: 63.0
B159: масса отварной мякоти птицы | E159: 27.0
B160: масло сливочное | D160: 5.0 | E160: 5.0
B161: Лук репчатый | D161: 8.9 | E161: 7.5
B162: Морковь | D162: 12.5 | E162: 10.0
B163: Крупа рисовая | D163: 32.0 | E163: 32.0
B164: вода | D164: 65.0 | E164: 65.0
B165: соль иодированная | D165: 0.3 | E165: 0.3
B166: масса гарнира | E166: 125.0
A167: Кисель | C167: 150 | F167: 0.43 | G167: 0.04 | H167: 9.67 | I167: 40.78 | J167: 0.82 | K167: №648 сбшк2004
B168: Кисель-концентрат | D168: 17.5 | E168: 17.5
B169: Сахар | D169: 5 | E169: 5
B170: вода | D170: 150 | E170: 150
A171: Хлеб ржаной | C171: 35 | D171: 35 | E171: 35 | F171: 2.31 | G171: 0.42 | H171: 13.85 | I171: 69.23 | K171: табл 6 стр 144,Дели + 2012
A172: Итого: | C172: 532 | F172: =F139+F145+F157+F167+F171 -> 13.99 | G172: =G139+G145+G157+G167+G171 -> 15.82 | H172: 57.07 | I172: 440.57 | J172: 9.79
B173: УПЛОТНЕННЫЙ ПОЛДНИК
A174: Кисломолочный напиток | C174: 150 | F174: 4.35 | G174: 3.75 | H174: 6.30 | I174: 76.00 | J174: 0.45 | K174: №420 Сб дошк 2016
A175: (кефир,ряженка,катык,напиток ацидофильный/йогурт) | B175: кисломолочный напиток | D175: 155 | E175: 150
A176: Запеканка творожная с повидлом | C176: 110/20 | F176: 8.41 | G176: 8.75 | H176: 21.93 | I176: 237.04 | J176: 0.61 | K176: № 251 сб дошк 2016
B177: Творог | D177: 103.2 | E177: 101.2
B178: крупа манная | D178: 6.6 | E178: 6.6
B179: Яйцо | D179: 5.28 | E179: 4.4
B180: Сахар | D180: 8.8 | E180: 8.8
B181: Сметана | D181: 4.4 | E181: 4.4
B182: Масло сливочное | D182: 4.4 | E182: 4.4
B183: Сухари панировочные | D183: 4.4 | E183: 4.4
B184: соль иодированная | D184: 0.55 | E184: 0.55
B185: повидло | D185: 20 | E185: 20
A186: Чай с сахаром и лимоном | C186: 150/5/5 | F186: 0.10 | G186: 0.02 | H186: 5.18 | I186: 21.89 | J186: 2.24 | K186: №393 Дели2010
B187: чай весовой | D187: 0.4 | E187: 0.4
B188: Сахар | D188: 5 | E188: 5
B189: лимон | D189: 5.55 | E189: 5
B190: Вода | D190: 150.0 | E190: 150.0
A191: Булочка дорожная | C191: 35 | F191: 2.37 | G191: 4.88 | H191: 14.73 | I191: 112.24 | K191: №453 сб дошк2016
B192: Мука пшеничная | D192: 21.35 | E192: 21.00
B193: мука пшеничная на подпыл | D193: 0.70 | E193: 0.70
B194: Сахар | D194: 4.20 | E194: 4.20
B195: Масло сливочное | D195: 4.55 | E195: 4.55
B196: соль иодированная | D196: 0.21 | E196: 0.21
B197: дрожжи сухие | D197: 0.14 | E197: 0.14
B198: вода | D198: 10.70 | E198: 10.70
B199: масса полуфабриката | E199: 39.90
B200: для крошки:
B201: мука пшеничная | D201: 0.84 | E201: 0.84
B202: масло сливочное | D202: 0.70 | E202: 0.70
B203: масса крошки | E203: 1.40
B204: масло растительное для смазки изделй | D204: 0.70 | E204: 0.70
A205: Итого: | C205: 475 | F205: =F174+F176+F186+F191 -> 15.23 | G205: =G174+G176+G186+G191 -> 17.40 | H205: 48.15 | I205: 447.17 | J205: 3.30
... 803 more rows

Sheet Лист1

Sheet от 3 до 7 лет
A1: Утверждаю | H1: Согласовано
A2: Директор ООО"АБК - Пэймент" | H2: Руководитель дошкольной образовательной
A3: Рахматуллин Р.Р. | H3: организации
C8: Примерное 10-дневное меню
C9: для организации питания детей в дошкольных учреждениях
C10: с 12 - часовым пребыванием от 3 до 7 лет
A12: День 1 - ый
A13: Наименование блюд и | C13: Масса | D13: Кол - во | E13: Кол - во | F13: Пищевые вещества | I13: Энергетическая | J13: Витамин | K13: Сборник рецептур
A14: продуктов | C14: порции | D14: (в гр ) | E14: (в гр ) | I14: ценность
D15: брутто | E15: нетто | F15: белки | G15: жиры | H15: угл-ды | I15: Ккал | J15: С
B16: ЗАВТРАК
A17: Каша "Дружба" молочная с маслом сливочным | C17: 180/5 | F17: 5.44 | G17: 7.07 | H17: 28.40 | I17: 202.64 | J17: 0.86 | K17: ТТК №7Д
B18: Крупа рисовая | D18: 13.50 | E18: 13.50
B19: Крупа пшенная | D19: 10.00 | E19: 10.00
B20: Молоко | D20: 90.00 | E20: 90.00
B21: Вода | D21: 68.00 | E21: 68.00
B22: Сахар | D22: 2.50 | E22: 2.50
B23: соль иодированная | D23: 0.50 | E23: 0.50
B24: Масло сливочное | D24: 5 | E24: 5
A25: Кофейный напиток с молоком | C25: 180 | F25: 2.85 | G25: 2.41 | H25: 5.99 | I25: 42.67 | J25: 1.17 | K25: №395 Дели2010
B26: Кофейный напиток | D26: 2.50 | E26: 2.50
B27: Сахар | D27: 6.00 | E27: 6.00
B28: Молоко | D28: 90.00 | E28: 90.00
B29: Вода | D29: 108.00 | E29: 108.00
A30: Бутерброд с маслом сливочным | C30: 30/5 | F30: 2.29 | G30: 4.50 | H30: 15.51 | I30: 111.68 | K30: №1 Дели2010
B31: Батон нарезной | D31: 30.00 | E31: 30.00
B32: Масло сливочное | D32: 5.00 | E32: 5.00
A33: Итого: | C33: 400 | F33: =F17+F25+F30 -> 10.58 | G33: =G17+G25+G30 -> 13.98 | H33: 49.89 | I33: 356.99 | J33: 2.03
B34: 2 - ой ЗАВТРАК
A35: Сок (или нектар) | C35: 180 | D35: 180.00 | E35: 180.00 | F35: 0.90 | G35: 0.00 | H35: 18.17 | I35: 76.26 | J35: 3.60 | K35: №418 сб дошк 2016
A36: в ассортименте
A37: Итого: | C37: 180 | F37: =F35 -> 0.90 | G37: =G35 -> 0.00 | H37: 18.17 | I37: 76.26 | J37: 3.60
B38: ОБЕД
A40: Салат из моркови с яблоками | C40: 60 | F40: 0.65 | G40: 0.11 | H40: 5.17 | I40: 24.24 | J40: 3.75 | K40: №39,сб дошк2016
B41: морковь | D41: 56.28 | E41: 45.00
B42: яблоки | D42: 17.10 | E42: 15.00
B43: сахар | D43: 0.60 | E43: 0.60
A45: Суп картофельный с куриными фрикадельками | C45: 180/15 | F45: 3.80 | G45: 3.93 | H45: 13.30 | I45: 103.65 | J45: 8.70 | K45: №83 СБ дошк 2016
B46: цыплята - бройлеры с/м | D46: 26.3 | E46: 17.1
B47: или фарш куриный | D47: 17.1 | E47: 17.1
B48: Лук репчатый | D48: 1.79 | E48: 1.5
B49: Яйцо | D49: 1.44 | E49: 1.2
B50: Вода для фарша | D50: 1.5 | E50: 1.5
B51: соль иодированная | D51: 0.15 | E51: 0.15
B52: Масса полуфабриката | E52: 21.5
B53: масса готовых фрикаделек | E53: 15
B54: Картофель | D54: 107.73 | E54: 81.00
B55: Морковь | D55: 9.00 | E55: 7.20
B56: Лук репчатый | D56: 8.64 | E56: 7.20
B57: Масло растительное | D57: 1.80 | E57: 1.80
B58: соль иодированная | D58: 0.60 | E58: 0.60
B59: Вода | D59: 126.00 | E59: 126.00
A60: Котлеты рубленые из говядины | C60: 70 | F60: 8.03 | G60: 10.70 | H60: 9.16 | I60: 179.20 | K60: СБ дошкольн. №299, 2016
B61: говядина б/к (котлетное мясо) | D61: 51.16 | E61: 49
B62: или фарш говяжий | D62: 49 | E62: 49
B63: Лук репчатый | D63: 14.64 | E63: 12.3
B64: Хлеб пшеничный | D64: 11 | E64: 11
B65: Вода | D65: 14.7 | E65: 14.7
B66: Сухари панировочные | D66: 4.00 | E66: 4.00
B67: соль иодированная | D67: 0.7 | E67: 0.7
B68: масса полуфабриката | E68: 75.3
B69: масло растительное | D69: 1 | E69: 1
A70: Каша ячневая вязкая с маслом сливочным | C70: 130/3 | F70: 3.02 | G70: 3.25 | H70: 34.14 | I70: 137.73 | K70: ТТК №3Д
B71: Крупа ячневая | D71: 27.00 | E71: 27.00
B72: Вода | D72: 104.00 | E72: 104.00
B73: Масло сливочное | D73: 3.00 | E73: 3.00
B74: соль иодированная | D74: 0.30 | E74: 0.30
A75: Напиток из сухофруктов | C75: 180 | F75: 0.60 | G75: 0.08 | H75: 20.81 | I75: 68 | J75: 0.65 | K75: №394 Сб дошк 2016
B76: сухофрукты | D76: 15.00 | E76: 15.00
B77: Сахар | D77: 6.00 | E77: 6.00
B78: вода | D78: 183.00 | E78: 183.00
A79: Хлеб ржаной | C79: 45 | D79: 45.00 | E79: 45.00 | F79: 2.97 | G79: 0.54 | H79: 17.84 | I79: 89.19 | K79: табл 6 стр 144,Дели + 2012
A80: Итого: | C80: 683 | F80: =F40+F45+F60+F70+F75+F79 -> 19.07 | G80: =G40+G45+G60+G70+G75+G79 -> 18.61 | H80: 100.41 | I80: 602.19 | J80: 13.10
B81: УПЛОТНЕННЫЙ ПОЛДНИК
A82: Кисломолочный напиток | C82: 180/3 | F82: 2.70 | G82: 3.10 | H82: 13.55 | I82: 91.32 | J82: 1.26 | K82: №420 СБ дошк 2016
A83: (Кефир,ряженка,катык,напиток ацидофильный/йогурт) | B83: кисломолочный напиток | D83: 185.00 | E83: 180.00
B84: сахар | D84: 3.00 | E84: 3.00
A85: Пудинг рыбный | C85: 60/20 | F85: 10.11 | G85: 7.85 | H85: 17.98 | I85: 174.03 | J85: 0.46 | K85: №286 СБ дошк 2016
B86: рыба (минтай с/м БГ) | D86: 68.34 | E86: 50.25
B87: масса отварной рыбы | E87: 39.75
B88: Хлеб пшеничный | D88: 8.25 | E88: 8.25
B89: яйцо | D89: 6.3 | E89: 5.25
B90: молоко | D90: 12 | E90: 12
B91: масло сливочное | D91: 2.25 | E91: 2.25
B92: соль иодированная | D92: 0.4 | E92: 0.4
B93: Масло растительное | D93: 1 | E93: 1
B94: масса пудинга | E94: 60
B95: Соус молочный
B96: молоко | D96: 10 | E96: 10
B97: масло сливочное | D97: 1.1 | E97: 1.1
B98: Мука пшеничная | D98: 1.1 | E98: 1.1
B99: Вода | D99: 10 | E99: 10
B100: Сахар | D100: 0.2 | E100: 0.2
B101: соль иодированная | D101: 0.13 | E101: 0.13
B102: масса соуса | E102: 20
A103: Пюре Картофельное | C103: 140 | F103: 2.86 | G103: 4.48 | H103: 25.08 | I103: 148.15 | J103: 16.96 | K103: № 339 СБ дошк 2016
B104: Картофель | D104: 159.60 | E104: 119.70
B105: Молоко | D105: 22.12 | E105: 21.00
B106: Масло сливочное | D106: 5.00 | E106: 5.00
B107: соль иодированная | D107: 0.52 | E107: 0.52
A108: Чай с сахаром | C108: 180/6 | F108: 0.06 | G108: 0.02 | H108: 6.01 | I108: 23.94 | J108: 0.03 | K108: № 392 Дели 2010
B109: чай весовой | D109: 0.45 | E109: 0.45
B110: сахар | D110: 6.00 | E110: 6.00
B111: Вода | D111: 180.00 | E111: 180.00
A112: Кондитерские изделия | B112: вафли | C112: 20 | D112: 20.00 | E112: 20.00 | F112: 0.79 | G112: 6.12 | H112: 12.51 | I112: 108.40 | K112: табл 10 стр 202, Ддели +,2012
A113: Хлеб пшеничный | C113: 30 | D113: 30.00 | E113: 30.00 | F113: 2.28 | G113: 0.24 | H113: 14.77 | I113: 70.57 | J113: 0.00 | K113: табл 6 стр 134,Дели + 2012
A114: Итого: | C114: 639 | F114: =F82+F85+F103+F108+F113+F112 -> 18.80 | G114: =G82+G85+G103+G108+G113+G112 -> 21.81 | H114: 89.91 | I114: 616.41 | J114: 18.71
A115: ВСЕГО: | C115: =C33+C37+C80+C114 -> 1902.00 | F115: =F33+F37+F80+F114 -> 49.36 | G115: =G33+G37+G80+G114 -> 54.41 | H115: =H33+H37+H80+H114 -> 258.38 | I115: =I33+I37+I80+I114 -> 1651.85 | J115: =J33+J37+J80+J114 -> 37.44
A117: День 2- ой
A118: Наименование блюд и | C118: Масса | D118: Кол - во | E118: Кол - во | F118: Пищевые вещества | I118: Энергетическая | J118: Витамин | K118: Сборник
A119: продуктов | C119: порции | D119: (в гр ) | E119: (в гр ) | I119: ценность | K119: рецептур
D120: брутто | E120: нетто | F120: белки | G120: жиры | H120: угл-ды | I120: Ккал | J120: С
B121: ЗАВТРАК
A122: Каша полбяная молочная с маслом сливочным | C122: 180/3 | F122: 3.73 | G122: 3.61 | H122: 30.86 | I122: 183.44 | J122: 0.86 | K122: ТТК №1Д
B123: Крупа полбяная | D123: 22.50 | E123: 22.50
B124: Молоко | D124: 90.00 | E124: 90.00
B125: вода | D125: 68.00 | E125: 68.00
B126: Сахар | D126: 2.50 | E126: 2.50
B127: соль иодированная | D127: 0.50 | E127: 0.50
B128: Масло сливочное | D128: 3.00 | E128: 3.00
A129: Какао с молоком | C129: 180 | F129: 3.67 | G129: 3.19 | H129: 5.99 | I129: 58.83 | J129: 1.43 | K129: №397 Дели2010
B130: Какао-порошок | D130: 2.00 | E130: 2.00
B131: Сахар | D131: 6.00 | E131: 6.00
B132: Молоко | D132: 110.00 | E132: 110.00
B133: Вода | D133: 80.00 | E133: 80.00
A134: Бутерброд с сыром, маслом сливочным | C134: 30/5/5 | F134: 3.64 | G134: 5.20 | H134: 14.83 | I134: 120.67 | J134: 0.04 | K134: №3 сб дошк2016
B135: Батон нарезной | D135: 30.00 | E135: 30.00
B136: Сыр | D136: 5.10 | E136: 5.00
B137: Масло сливочное | D137: 5.00 | E137: 5.00
A138: Итого: | C138: 403 | F138: =F122+F129+F134 -> 11.04 | G138: =G122+G129+G134 -> 12.00 | H138: 51.68 | I138: 362.93 | J138: 2.33
B139: 2 - ой ЗАВТРАК
A140: Фрукты свежие | C140: 100 | D140: 114 | E140: 100 | F140: 0.40 | G140: 0.40 | H140: 9.80 | I140: 47.00 | J140: 10.00 | K140: №386 СБ
A141: (яблоки,или апельсин, или банан,или мандарин ) | K141: дошк.2016
A142: Итого: | C142: 100 | F142: =F140 -> 0.40 | G142: =G140 -> 0.40 | H142: 9.80 | I142: 47.00 | J142: 10.00
B143: ОБЕД
A144: Салат из картофеля с солеными огурцами | C144: 60 | F144: 0.73 | G144: 4.70 | H144: 5.38 | I144: 66.83 | J144: 3.62 | K144: №23 сб дошк2016
B145: огурцы соленые | D145: 32.76 | E145: 18.00
B146: картофель | D146: 32.90 | E146: 24.00
B147: морковь | D147: 15.36 | E147: 12.00
B148: лук репчатый | D148: 3.60 | E148: 3.00
B149: масло растительное | D149: 3.00 | E149: 3.00
A150: Борщ со свежей капустой, картофелем на курином бульоне , со сметаной | C150: 180/7 | F150: 1.48 | G150: 4.59 | H150: 8.12 | I150: 85.97 | J150: 7.71 | K150: №110, сб шк2004
B151: Капуста свежая | D151: 20.00 | E151: 16.00
B152: Картофель | D152: 21.28 | E152: 16.00
B153: Морковь | D153: 12.50 | E153: 10.00
B154: Лук репчатый | D154: 9.52 | E154: 8.00
B155: Свекла | D155: 41.00 | E155: 32.00
B156: Сахар | D156: 2.40 | E156: 2.40
B157: Томат-паста | D157: 1.00 | E157: 1.00
B158: Масло растительное | D158: 4.00 | E158: 4.00
B159: соль иодированная | D159: 2.00 | E159: 2.00
B160: Бульон | D160: 140.00 | E160: 140.00
B161: Сметана | D161: 7.00 | E161: 7.00
A162: Плов из отварной птицы | C162: 200 | F162: 11.19 | G162: 10.93 | H162: 31.80 | I162: 282.55 | J162: 0.18 | K162: №443,сбшк2004
B163: цыплята - бройлер с/м | D163: 85.30 | E163: 80.5
B164: масса отварной мякоти птицы | E164: 35.0
B165: масло сливочное | D165: 6.0 | E165: 6.0
B166: Лук репчатый | D166: 11.9 | E166: 10.0
B167: Морковь | D167: 18.75 | E167: 15.0
B168: Крупа рисовая | D168: 42.0 | E168: 42.0
B169: вода | D169: 89.0 | E169: 89.0
B170: соль иодированная | D170: 0.4 | E170: 0.4
B171: масса гарнира | E171: 165.0
A172: Кисель | C172: 180 | F172: 0.51 | G172: 0.05 | H172: 12.20 | I172: 51.33 | J172: 0.99 | K172: № 648, сб шк2004
B173: Кисель-концентрат | D173: 21.00 | E173: 21.00
B174: Сахар | D174: 6.00 | E174: 6.00
B175: вода | D175: 180.00 | E175: 180.00
A176: Хлеб пшеничный | C176: 25 | D176: 25.00 | E176: 25.00 | F176: 1.90 | G176: 0.20 | H176: 12.30 | I176: 58.75 | J176: 0.00 | K176: табл 6 стр 134,Дели + 2012
A177: Хлеб ржаной | C177: 45 | D177: 45.00 | E177: 45.00 | F177: 2.97 | G177: 0.54 | H177: 17.84 | I177: 89.19 | K177: табл 6 стр 144,Дели + 2012
A178: Итого: | C178: 697 | F178: =F144+F150+F162+F172+F176+F177 -> 18.78 | G178: =G144+G150+G162+G172+G176+G177 -> 21.02 | H178: 87.63 | I178: 634.62 | J178: 12.50
B179: УПЛОТНЕННЫЙ ПОЛДНИК
A180: Кисломолочный напиток | C180: 180 | F180: 2.78 | G180: 2.90 | H180: 13.30 | I180: 93.85 | J180: 0.54 | K180: №420 СБ дошк 2016
A181: (Кефир,ряженка,катык,напиток ацидофильный/йогурт) | B181: кисломолочный напиток | D181: 185 | E181: 180
A182: Запеканка творожная с повидлом | C182: 130/20 | F182: 10.82 | G182: 10.06 | H182: 25.22 | I182: 272.60 | J182: 0.66 | K182: №251, сбдошк 2016
B183: Творог | D183: 121.55 | E183: 119.20
B184: Крупа манная | D184: 7.80 | E184: 7.80
B185: Яйцо | D185: 6.50 | E185: 5.42
B186: Сахар | D186: 10.40 | E186: 10.40
B187: Сметана | D187: 5.20 | E187: 5.20
B188: Масло сливочное | D188: 5.20 | E188: 5.20
B189: Сухари панировочные | D189: 5.20 | E189: 5.20
B190: соль иодированная | D190: 0.65 | E190: 0.65
B191: повидло | D191: 20.00 | E191: 20.00
A192: Чай с сахаром и лимоном | C192: 180/6/7 | F192: 0.12 | G192: 0.02 | H192: 6.23 | I192: 26.12 | J192: 2.83 | K192: № 393 Дели2010
B193: чай весовой | D193: 0.45 | E193: 0.45
B194: Сахар | D194: 6.00 | E194: 6.00
B195: лимон | D195: 8.00 | E195: 7.00
B196: Вода | D196: 180.00 | E196: 180.00
A197: Булочка дорожная | C197: 50 | F197: 3.39 | G197: 6.98 | H197: 21.07 | I197: 160.50 | K197: №453 сб дошк2016
B198: Мука пшеничная | D198: 30.50 | E198: 30.00
B199: мука пшеничная на подпыл | D199: 1.00 | E199: 1.00
B200: Сахар | D200: 6.00 | E200: 6.00
B201: Масло сливочное | D201: 6.50 | E201: 6.50
B202: соль иодированная | D202: 0.30 | E202: 0.30
B203: дрожжи сухие | D203: 0.20 | E203: 0.20
B204: вода | D204: 15.30 | E204: 15.30
B205: масса полуфабриката | E205: 57.00
B206: для крошки:
B207: мука пшеничная | D207: 1.20 | E207: 1.20
B208: масло сливочное | D208: 1.00 | E208: 1.00
... 812 more rows
